[Event "Titled Tuesday Blitz March 21 Late 2023"]
[White "Zhurbinsky, David"]
[Black "Melikhov, Evgeny V."]
[WhiteFideId "2072904"]
[BlackFideId "4122046"]
[WhiteElo "2605"]
[BlackElo "2158"]
[Result "0-1"]
[Round "07"]
[TimeControl "180+2"]
[Date "2023.03.21"]
[WhiteClock "0:01:30"]
[BlackClock "0:01:23"]

1. e4 {[%clk 0:03:00]}  e5 {[%clk 0:02:59]} 2. Nf3 {[%clk 0:03:01]}  Nc6 {[%clk 0:02:59]} 3. Bb5 {[%clk 0:03:01]}  a6 {[%clk 0:02:59]} 4. Ba4 {[%clk 0:03:01]}  Nf6 {[%clk 0:02:59]} 5. O-O {[%clk 0:03:02]}  Nxe4 {[%clk 0:02:59]} 6. d4 {[%clk 0:03:01]}  b5 {[%clk 0:02:59]} 7. Bb3 {[%clk 0:03:00]}  d5 {[%clk 0:02:59]} 8. dxe5 {[%clk 0:02:57]}  Be6 {[%clk 0:03:00]} 9. c3 {[%clk 0:02:56]}  Bc5 {[%clk 0:02:59]} 10. Nbd2 {[%clk 0:02:52]}  O-O {[%clk 0:02:58]} 11. Nxe4 {[%clk 0:02:34]}  dxe4 {[%clk 0:02:57]} 12. Bxe6 {[%clk 0:02:31]}  Qxd1 {[%clk 0:02:52]} 13. Rxd1 {[%clk 0:02:30]}  fxe6 {[%clk 0:02:50]} 14. Ng5 {[%clk 0:02:24]}  Rxf2 {[%clk 0:02:25]} 15. Kh1 {[%clk 0:02:15]}  e3 {[%clk 0:02:12]} 16. Re1 {[%clk 0:01:56]}  e2 {[%clk 0:02:04]} 17. Bd2 {[%clk 0:01:56]}  Nxe5 {[%clk 0:02:00]} 18. Ne4 {[%clk 0:01:51]}  Nd3 {[%clk 0:01:36]} 19. Nxc5 {[%clk 0:01:50]}  Nxe1 {[%clk 0:01:36]} 20. h3 {[%clk 0:01:34]}  Rf1+ {[%clk 0:01:34]} 21. Kh2 {[%clk 0:01:34]}  Nf3+ {[%clk 0:01:30]} 22. gxf3 {[%clk 0:01:34]}  Rxa1 {[%clk 0:01:30]} 23. Nxe6 {[%clk 0:01:30]}  Rd1 {[%clk 0:01:23]} 0-1


[Site "https://www.chess.com"]

[Event "Titled Tuesday Blitz March 21 Late 2023"]
[White "Urbina Perez, Juan Antonio"]
[Black "Romero Ruscalleda, Josep"]
[WhiteFideId "2217368"]
[BlackFideId "2231859"]
[WhiteElo "2197"]
[BlackElo "2183"]
[Result "1-0"]
[Round "07"]
[TimeControl "180+2"]
[Date "2023.03.21"]
[WhiteClock "0:01:58"]
[BlackClock "0:01:16"]

1. c4 {[%clk 0:03:00]}  g6 {[%clk 0:02:59]} 2. g3 {[%clk 0:02:59]}  Bg7 {[%clk 0:02:59]} 3. Bg2 {[%clk 0:03:00]}  e5 {[%clk 0:03:00]} 4. Nf3 {[%clk 0:03:01]}  f5 {[%clk 0:02:59]} 5. O-O {[%clk 0:03:00]}  d6 {[%clk 0:02:59]} 6. d3 {[%clk 0:03:01]}  Nf6 {[%clk 0:02:59]} 7. Nc3 {[%clk 0:03:01]}  O-O {[%clk 0:02:59]} 8. Re1 {[%clk 0:03:00]}  h6 {[%clk 0:02:58]} 9. Qc2 {[%clk 0:03:00]}  Nc6 {[%clk 0:02:57]} 10. Nd5 {[%clk 0:02:59]}  Kh7 {[%clk 0:02:54]} 11. Rb1 {[%clk 0:02:53]}  Be6 {[%clk 0:02:49]} 12. Nxf6+ {[%clk 0:02:52]}  Qxf6 {[%clk 0:02:47]} 13. b4 {[%clk 0:02:52]}  g5 {[%clk 0:02:41]} 14. b5 {[%clk 0:02:50]}  Ne7 {[%clk 0:02:41]} 15. Bb2 {[%clk 0:02:48]}  c6 {[%clk 0:02:38]} 16. a4 {[%clk 0:02:46]}  Ng6 {[%clk 0:02:29]} 17. Ba3 {[%clk 0:02:43]}  c5 {[%clk 0:02:17]} 18. Bb2 {[%clk 0:02:41]}  Rab8 {[%clk 0:02:13]} 19. a5 {[%clk 0:02:38]}  b6 {[%clk 0:02:12]} 20. axb6 {[%clk 0:02:36]}  axb6 {[%clk 0:02:12]} 21. Ra1 {[%clk 0:02:36]}  Rf7 {[%clk 0:02:09]} 22. Ra6 {[%clk 0:02:35]}  g4 {[%clk 0:02:00]} 23. Nd2 {[%clk 0:02:32]}  Bc8 {[%clk 0:01:53]} 24. Ra4 {[%clk 0:02:30]}  Bb7 {[%clk 0:01:49]} 25. Rea1 {[%clk 0:02:24]}  Bxg2 {[%clk 0:01:47]} 26. Kxg2 {[%clk 0:02:25]}  h5 {[%clk 0:01:45]} 27. Ra7 {[%clk 0:02:23]}  Rbf8 {[%clk 0:01:41]} 28. Rxf7 {[%clk 0:02:22]}  Rxf7 {[%clk 0:01:41]} 29. Ra6 {[%clk 0:02:23]}  Qd8 {[%clk 0:01:32]} 30. Qa4 {[%clk 0:02:21]}  f4 {[%clk 0:01:28]} 31. Ne4 {[%clk 0:02:19]}  f3+ {[%clk 0:01:25]} 32. exf3 {[%clk 0:02:17]}  Rxf3 {[%clk 0:01:23]} 33. Ra8 {[%clk 0:02:15]}  Qe7 {[%clk 0:01:19]} 34. Qa7 {[%clk 0:02:14]}  Rxd3 {[%clk 0:01:17]} 35. Qxb6 {[%clk 0:01:58]}  Qf7 {[%clk 0:01:16]} 36. Ng5+ {[%clk 0:01:58]} 1-0


[Site "https://www.chess.com"]

[Event "Titled Tuesday Blitz March 21 Late 2023"]
[White "Quinones Garcia, Santiago"]
[Black "Stachanczyk, Jacek"]
[WhiteFideId "4408497"]
[BlackFideId "1116657"]
[WhiteElo "2263"]
[BlackElo "2084"]
[Result "1-0"]
[Round "07"]
[TimeControl "180+2"]
[Date "2023.03.21"]
[WhiteClock "0:01:57"]
[BlackClock "0:01:27"]

1. d4 {[%clk 0:03:00]}  Nf6 {[%clk 0:02:56]} 2. c4 {[%clk 0:03:01]}  g6 {[%clk 0:02:56]} 3. Nc3 {[%clk 0:03:01]}  d6 {[%clk 0:02:56]} 4. e4 {[%clk 0:03:01]}  Bg7 {[%clk 0:02:57]} 5. Nf3 {[%clk 0:03:01]}  O-O {[%clk 0:02:57]} 6. Be2 {[%clk 0:03:02]}  e5 {[%clk 0:02:57]} 7. O-O {[%clk 0:03:02]}  exd4 {[%clk 0:02:57]} 8. Nxd4 {[%clk 0:03:02]}  Re8 {[%clk 0:02:57]} 9. f3 {[%clk 0:03:03]}  Nc6 {[%clk 0:02:57]} 10. Be3 {[%clk 0:03:02]}  Nh5 {[%clk 0:02:57]} 11. Re1 {[%clk 0:02:57]}  Nf4 {[%clk 0:02:53]} 12. Nxc6 {[%clk 0:02:52]}  Nxe2+ {[%clk 0:02:52]} 13. Rxe2 {[%clk 0:02:48]}  bxc6 {[%clk 0:02:53]} 14. Rc1 {[%clk 0:02:45]}  c5 {[%clk 0:02:48]} 15. Rd2 {[%clk 0:02:44]}  Bd7 {[%clk 0:02:22]} 16. Bxc5 {[%clk 0:02:41]}  Qb8 {[%clk 0:02:22]} 17. Ba3 {[%clk 0:02:37]}  Be6 {[%clk 0:02:12]} 18. b3 {[%clk 0:02:34]}  Qb6+ {[%clk 0:02:09]} 19. Kh1 {[%clk 0:02:31]}  Bh6 {[%clk 0:01:59]} 20. Bb2 {[%clk 0:02:28]}  Bxd2 {[%clk 0:01:58]} 21. Qxd2 {[%clk 0:02:29]}  Rf8 {[%clk 0:01:54]} 22. Qh6 {[%clk 0:02:15]}  f6 {[%clk 0:01:53]} 23. h4 {[%clk 0:02:10]}  Qc5 {[%clk 0:01:53]} 24. Nd5 {[%clk 0:02:05]}  Bxd5 {[%clk 0:01:47]} 25. cxd5 {[%clk 0:02:06]}  Qf2 {[%clk 0:01:47]} 26. Rxc7 {[%clk 0:02:01]}  Rf7 {[%clk 0:01:26]} 27. Rxf7 {[%clk 0:02:00]}  Kxf7 {[%clk 0:01:27]} 28. Qxh7+ {[%clk 0:02:00]}  Ke8 {[%clk 0:01:27]} 29. Bxf6 {[%clk 0:01:57]} 1-0


[Site "https://www.chess.com"]

[Event "Titled Tuesday Blitz March 21 Late 2023"]
[White "Ronka, Erik"]
[Black "Michalski, Olaf"]
[WhiteFideId "505080"]
[BlackFideId "1106740"]
[WhiteElo "2264"]
[BlackElo "2173"]
[Result "1-0"]
[Round "07"]
[TimeControl "180+2"]
[Date "2023.03.21"]
[WhiteClock "0:00:17"]
[BlackClock "0:00:02"]

1. a3 {[%clk 0:03:00]}  d6 {[%clk 0:02:56]} 2. c4 {[%clk 0:02:58]}  e5 {[%clk 0:02:56]} 3. e3 {[%clk 0:02:57]}  f5 {[%clk 0:02:56]} 4. d3 {[%clk 0:02:57]}  Nf6 {[%clk 0:02:56]} 5. g3 {[%clk 0:02:55]}  Be7 {[%clk 0:02:57]} 6. Bg2 {[%clk 0:02:56]}  O-O {[%clk 0:02:57]} 7. Ne2 {[%clk 0:02:56]}  Qe8 {[%clk 0:02:57]} 8. Nbc3 {[%clk 0:02:39]}  c6 {[%clk 0:02:50]} 9. d4 {[%clk 0:02:27]}  Nbd7 {[%clk 0:02:33]} 10. Qc2 {[%clk 0:02:23]}  Qh5 {[%clk 0:02:28]} 11. h3 {[%clk 0:02:19]}  Nb6 {[%clk 0:01:44]} 12. b3 {[%clk 0:02:17]}  Bd7 {[%clk 0:01:28]} 13. Bb2 {[%clk 0:02:14]}  Rae8 {[%clk 0:01:29]} 14. O-O-O {[%clk 0:02:12]}  Qf7 {[%clk 0:01:05]} 15. f3 {[%clk 0:02:01]}  Bd8 {[%clk 0:00:54]} 16. Kb1 {[%clk 0:01:53]}  exd4 {[%clk 0:00:52]} 17. exd4 {[%clk 0:01:54]}  Re3 {[%clk 0:00:23]} 18. Bc1 {[%clk 0:01:48]}  Ree8 {[%clk 0:00:18]} 19. g4 {[%clk 0:01:46]}  g6 {[%clk 0:00:17]} 20. Bh6 {[%clk 0:01:41]}  Re7 {[%clk 0:00:15]} 21. Ng3 {[%clk 0:01:24]}  Rfe8 {[%clk 0:00:15]} 22. gxf5 {[%clk 0:01:22]}  gxf5 {[%clk 0:00:15]} 23. Nxf5 {[%clk 0:01:18]}  Bxf5 {[%clk 0:00:15]} 24. Qxf5 {[%clk 0:01:19]}  Qg6 {[%clk 0:00:14]} 25. Qxg6+ {[%clk 0:01:19]}  hxg6 {[%clk 0:00:15]} 26. Bf4 {[%clk 0:01:15]}  Nc8 {[%clk 0:00:14]} 27. h4 {[%clk 0:01:14]}  Nh5 {[%clk 0:00:13]} 28. Bg5 {[%clk 0:01:12]}  Rf7 {[%clk 0:00:14]} 29. Ne4 {[%clk 0:01:05]}  d5 {[%clk 0:00:12]} 30. cxd5 {[%clk 0:01:03]}  cxd5 {[%clk 0:00:12]} 31. Nc3 {[%clk 0:01:02]}  Nb6 {[%clk 0:00:11]} 32. Rhe1 {[%clk 0:00:57]}  Rxe1 {[%clk 0:00:09]} 33. Rxe1 {[%clk 0:00:58]}  Bxg5 {[%clk 0:00:10]} 34. hxg5 {[%clk 0:00:59]}  Nf4 {[%clk 0:00:10]} 35. Bf1 {[%clk 0:00:58]}  Kf8 {[%clk 0:00:08]} 36. Nb5 {[%clk 0:00:50]}  Rf5 {[%clk 0:00:07]} 37. Nd6 {[%clk 0:00:32]}  Rxg5 {[%clk 0:00:07]} 38. Bb5 {[%clk 0:00:33]}  Rg2 {[%clk 0:00:06]} 39. Nxb7 {[%clk 0:00:25]}  Rf2 {[%clk 0:00:05]} 40. Nc5 {[%clk 0:00:17]}  Rxf3 {[%clk 0:00:03]} 41. a4 {[%clk 0:00:17]}  Rc3 {[%clk 0:00:02]} 42. a5 {[%clk 0:00:17]} 1-0


[Site "https://www.chess.com"]

[Event "Titled Tuesday Blitz March 21 Late 2023"]
[White "Wizard_of_Odds"]
[Black "Toniutti, Ezio"]
[BlackFideId "113034"]
[WhiteElo "2349"]
[BlackElo "2215"]
[Result "1-0"]
[Round "07"]
[TimeControl "180+2"]
[Date "2023.03.21"]
[WhiteClock "0:00:23"]
[BlackClock "0:00:11"]

1. d4 {[%clk 0:02:57]}  d5 {[%clk 0:02:59]} 2. c4 {[%clk 0:02:58]}  c6 {[%clk 0:03:00]} 3. Nf3 {[%clk 0:02:58]}  Nf6 {[%clk 0:03:00]} 4. e3 {[%clk 0:02:58]}  Bf5 {[%clk 0:03:00]} 5. Nc3 {[%clk 0:02:58]}  e6 {[%clk 0:03:00]} 6. Nh4 {[%clk 0:02:58]}  Be4 {[%clk 0:03:00]} 7. f3 {[%clk 0:02:55]}  Bg6 {[%clk 0:03:00]} 8. Nxg6 {[%clk 0:02:52]}  hxg6 {[%clk 0:03:01]} 9. g3 {[%clk 0:02:42]}  Be7 {[%clk 0:02:58]} 10. Bd3 {[%clk 0:02:37]}  O-O {[%clk 0:02:52]} 11. O-O {[%clk 0:02:34]}  Nbd7 {[%clk 0:02:52]} 12. cxd5 {[%clk 0:02:30]}  cxd5 {[%clk 0:02:39]} 13. Qb3 {[%clk 0:02:21]}  Qb6 {[%clk 0:02:34]} 14. Qxb6 {[%clk 0:02:20]}  Nxb6 {[%clk 0:02:35]} 15. b3 {[%clk 0:02:16]}  Rfc8 {[%clk 0:02:32]} 16. Bd2 {[%clk 0:02:16]}  a5 {[%clk 0:02:08]} 17. Bb5 {[%clk 0:02:07]}  Bb4 {[%clk 0:02:01]} 18. Rfc1 {[%clk 0:02:01]}  Ba3 {[%clk 0:02:01]} 19. Rc2 {[%clk 0:02:01]}  a4 {[%clk 0:01:48]} 20. Bd3 {[%clk 0:01:56]}  Ne8 {[%clk 0:01:35]} 21. Nb5 {[%clk 0:01:48]}  Rxc2 {[%clk 0:01:24]} 22. Bxc2 {[%clk 0:01:49]}  Be7 {[%clk 0:01:24]} 23. bxa4 {[%clk 0:01:40]}  Nxa4 {[%clk 0:01:23]} 24. Rb1 {[%clk 0:01:32]}  Nd6 {[%clk 0:01:13]} 25. Nxd6 {[%clk 0:01:30]}  Bxd6 {[%clk 0:01:13]} 26. Rxb7 {[%clk 0:01:29]}  Ba3 {[%clk 0:01:01]} 27. Rb5 {[%clk 0:01:11]}  Nb2 {[%clk 0:00:50]} 28. Ra5 {[%clk 0:00:59]}  Rc8 {[%clk 0:00:49]} 29. Bb3 {[%clk 0:00:52]}  Bd6 {[%clk 0:00:34]} 30. Ra6 {[%clk 0:00:50]}  Be7 {[%clk 0:00:31]} 31. Ra7 {[%clk 0:00:48]}  Bd6 {[%clk 0:00:27]} 32. Rd7 {[%clk 0:00:46]}  Ba3 {[%clk 0:00:25]} 33. Ra7 {[%clk 0:00:46]}  Bf8 {[%clk 0:00:25]} 34. Rb7 {[%clk 0:00:46]}  Nc4 {[%clk 0:00:25]} 35. Bxc4 {[%clk 0:00:40]}  dxc4 {[%clk 0:00:26]} 36. Bc3 {[%clk 0:00:38]}  Ra8 {[%clk 0:00:26]} 37. Rb2 {[%clk 0:00:38]}  Ra3 {[%clk 0:00:26]} 38. Rc2 {[%clk 0:00:38]}  Bd6 {[%clk 0:00:22]} 39. Kf2 {[%clk 0:00:37]}  Bc7 {[%clk 0:00:22]} 40. Bd2 {[%clk 0:00:31]}  Bb6 {[%clk 0:00:18]} 41. Ke2 {[%clk 0:00:29]}  Kf8 {[%clk 0:00:17]} 42. Kd1 {[%clk 0:00:28]}  Ke8 {[%clk 0:00:16]} 43. Kc1 {[%clk 0:00:27]}  e5 {[%clk 0:00:15]} 44. Kb2 {[%clk 0:00:24]}  Rd3 {[%clk 0:00:14]} 45. dxe5 {[%clk 0:00:21]}  Bxe3 {[%clk 0:00:14]} 46. Bxe3 {[%clk 0:00:21]}  Rxe3 {[%clk 0:00:14]} 47. Rxc4 {[%clk 0:00:21]}  Rxe5 {[%clk 0:00:14]} 48. Re4 {[%clk 0:00:21]}  Rxe4 {[%clk 0:00:10]} 49. fxe4 {[%clk 0:00:22]}  Ke7 {[%clk 0:00:11]} 50. Kc3 {[%clk 0:00:22]}  Ke6 {[%clk 0:00:12]} 51. Kd4 {[%clk 0:00:23]}  Kd6 {[%clk 0:00:12]} 52. a4 {[%clk 0:00:22]}  Kc6 {[%clk 0:00:11]} 53. Kc4 {[%clk 0:00:23]}  Kb6 {[%clk 0:00:11]} 54. Kb4 {[%clk 0:00:23]}  Kc6 {[%clk 0:00:11]} 55. a5 {[%clk 0:00:23]} 1-0


[Site "https://www.chess.com"]

[Event "Titled Tuesday Blitz March 21 Late 2023"]
[White "Pinheiro, Iung Alicio de O."]
[Black "chessjazda"]
[WhiteFideId "2104350"]
[WhiteElo "2283"]
[BlackElo "2353"]
[Result "1/2-1/2"]
[Round "07"]
[TimeControl "180+2"]
[Date "2023.03.21"]
[WhiteClock "0:00:06"]
[BlackClock "0:00:04"]

1. c4 {[%clk 0:03:00]}  Nf6 {[%clk 0:02:54]} 2. g3 {[%clk 0:03:00]}  c6 {[%clk 0:02:53]} 3. Nf3 {[%clk 0:02:55]}  d5 {[%clk 0:02:51]} 4. Bg2 {[%clk 0:02:47]}  Bf5 {[%clk 0:02:50]} 5. b3 {[%clk 0:02:46]}  e6 {[%clk 0:02:46]} 6. Bb2 {[%clk 0:02:45]}  Be7 {[%clk 0:02:46]} 7. O-O {[%clk 0:02:46]}  O-O {[%clk 0:02:46]} 8. d3 {[%clk 0:02:41]}  Nbd7 {[%clk 0:02:41]} 9. Nbd2 {[%clk 0:02:40]}  h6 {[%clk 0:02:41]} 10. a3 {[%clk 0:02:40]}  a5 {[%clk 0:02:40]} 11. Ra2 {[%clk 0:02:40]}  Rc8 {[%clk 0:02:28]} 12. Qa1 {[%clk 0:02:40]}  b5 {[%clk 0:02:22]} 13. Nd4 {[%clk 0:02:17]}  bxc4 {[%clk 0:02:08]} 14. Nxf5 {[%clk 0:02:16]}  exf5 {[%clk 0:02:04]} 15. bxc4 {[%clk 0:02:14]}  Nc5 {[%clk 0:01:56]} 16. Rc1 {[%clk 0:02:01]}  a4 {[%clk 0:01:53]} 17. Bd4 {[%clk 0:01:35]}  Nb3 {[%clk 0:01:45]} 18. Nxb3 {[%clk 0:01:34]}  axb3 {[%clk 0:01:45]} 19. Rb2 {[%clk 0:01:34]}  Rb8 {[%clk 0:01:44]} 20. Rc3 {[%clk 0:01:22]}  dxc4 {[%clk 0:01:41]} 21. Rxc4 {[%clk 0:01:23]}  c5 {[%clk 0:01:33]} 22. Bxc5 {[%clk 0:01:10]}  Bxc5 {[%clk 0:01:29]} 23. Rxc5 {[%clk 0:01:11]}  Qd4 {[%clk 0:01:23]} 24. Rc4 {[%clk 0:01:09]}  Qe5 {[%clk 0:01:20]} 25. Qb1 {[%clk 0:01:07]}  Nd5 {[%clk 0:01:14]} 26. Rxb3 {[%clk 0:00:49]}  Rxb3 {[%clk 0:01:08]} 27. Qxb3 {[%clk 0:00:50]}  Rb8 {[%clk 0:01:08]} 28. Qd1 {[%clk 0:00:04]}  Nc3 {[%clk 0:01:04]} 29. Rxc3 {[%clk 0:00:02]}  Qxc3 {[%clk 0:01:04]} 30. Bf3 {[%clk 0:00:03]}  Qxa3 {[%clk 0:00:59]} 31. Kg2 {[%clk 0:00:03]}  Qc3 {[%clk 0:00:53]} 32. h3 {[%clk 0:00:03]}  Rc8 {[%clk 0:00:49]} 33. Qa4 {[%clk 0:00:03]}  Qe5 {[%clk 0:00:46]} 34. Qd7 {[%clk 0:00:04]}  Re8 {[%clk 0:00:46]} 35. Qc6 {[%clk 0:00:03]}  Re7 {[%clk 0:00:45]} 36. e3 {[%clk 0:00:04]}  Qe6 {[%clk 0:00:41]} 37. Qa8+ {[%clk 0:00:03]}  Re8 {[%clk 0:00:41]} 38. Qa4 {[%clk 0:00:02]}  Rd8 {[%clk 0:00:37]} 39. d4 {[%clk 0:00:03]}  Qd6 {[%clk 0:00:37]} 40. Qb5 {[%clk 0:00:03]}  g6 {[%clk 0:00:36]} 41. Qb1 {[%clk 0:00:04]}  Kg7 {[%clk 0:00:36]} 42. Qd1 {[%clk 0:00:05]}  Kh7 {[%clk 0:00:36]} 43. h4 {[%clk 0:00:06]}  Kg7 {[%clk 0:00:35]} 44. h5 {[%clk 0:00:05]}  Kh7 {[%clk 0:00:35]} 45. hxg6+ {[%clk 0:00:06]}  fxg6 {[%clk 0:00:35]} 46. Qb1 {[%clk 0:00:07]}  h5 {[%clk 0:00:33]} 47. Qb5 {[%clk 0:00:07]}  Kh6 {[%clk 0:00:31]} 48. Bc6 {[%clk 0:00:08]}  Kg7 {[%clk 0:00:31]} 49. d5 {[%clk 0:00:08]}  Kh6 {[%clk 0:00:29]} 50. Qb2 {[%clk 0:00:09]}  Qe7 {[%clk 0:00:27]} 51. Qd4 {[%clk 0:00:09]}  Qe4+ {[%clk 0:00:24]} 52. Qxe4 {[%clk 0:00:10]}  fxe4 {[%clk 0:00:24]} 53. f3 {[%clk 0:00:11]}  Kg5 {[%clk 0:00:20]} 54. fxe4 {[%clk 0:00:10]}  Kf6 {[%clk 0:00:21]} 55. Kf3 {[%clk 0:00:09]}  Ke5 {[%clk 0:00:21]} 56. Ke2 {[%clk 0:00:09]}  g5 {[%clk 0:00:19]} 57. Kf3 {[%clk 0:00:09]}  Rf8+ {[%clk 0:00:17]} 58. Kg2 {[%clk 0:00:09]}  Rf6 {[%clk 0:00:16]} 59. Bb7 {[%clk 0:00:09]}  Rd6 {[%clk 0:00:16]} 60. Kf3 {[%clk 0:00:07]}  g4+ {[%clk 0:00:16]} 61. Ke2 {[%clk 0:00:07]}  Kxe4 {[%clk 0:00:17]} 62. Bc6 {[%clk 0:00:08]}  Ke5 {[%clk 0:00:14]} 63. Kf2 {[%clk 0:00:06]}  Rf6+ {[%clk 0:00:14]} 64. Kg2 {[%clk 0:00:06]}  Kd6 {[%clk 0:00:13]} 65. e4 {[%clk 0:00:07]}  Rf3 {[%clk 0:00:09]} 66. Be8 {[%clk 0:00:08]}  Ke5 {[%clk 0:00:08]} 67. Bxh5 {[%clk 0:00:08]}  Kxe4 {[%clk 0:00:06]} 68. Bxg4 {[%clk 0:00:07]}  Rd3 {[%clk 0:00:06]} 69. Be6 {[%clk 0:00:07]}  Ke5 {[%clk 0:00:05]} 70. Kh3 {[%clk 0:00:07]}  Kf6 {[%clk 0:00:04]} 71. Kg4 {[%clk 0:00:06]}  Rd4+ {[%clk 0:00:04]} 72. Kh5 {[%clk 0:00:07]}  Rd1 {[%clk 0:00:04]} 73. Kh4 {[%clk 0:00:06]}  Rh1+ {[%clk 0:00:04]} 74. Kg4 {[%clk 0:00:07]}  Rd1 {[%clk 0:00:04]} 75. Kf4 {[%clk 0:00:07]}  Rd4+ {[%clk 0:00:05]} 76. Ke3 {[%clk 0:00:07]}  Ra4 {[%clk 0:00:04]} 77. g4 {[%clk 0:00:08]}  Ra3+ {[%clk 0:00:03]} 78. Kd4 {[%clk 0:00:08]}  Ra4+ {[%clk 0:00:03]} 79. Kc5 {[%clk 0:00:09]}  Ra5+ {[%clk 0:00:03]} 80. Kb6 {[%clk 0:00:09]}  Ra1 {[%clk 0:00:03]} 81. Bf5 {[%clk 0:00:10]}  Ke5 {[%clk 0:00:03]} 82. Kc6 {[%clk 0:00:09]}  Rd1 {[%clk 0:00:03]} 83. Be6 {[%clk 0:00:09]}  Rd4 {[%clk 0:00:03]} 84. Kd7 {[%clk 0:00:07]}  Rxd5+ {[%clk 0:00:03]} 85. Bxd5 {[%clk 0:00:08]}  Kxd5 {[%clk 0:00:03]} 86. g5 {[%clk 0:00:05]}  Ke5 {[%clk 0:00:04]} 87. g6 {[%clk 0:00:06]}  Kf6 {[%clk 0:00:04]} 88. g7 {[%clk 0:00:06]}  Kxg7 {[%clk 0:00:04]} 1/2-1/2


[Site "https://www.chess.com"]

[Event "Titled Tuesday Blitz March 21 Late 2023"]
[White "Hirneise, Jens"]
[Black "Bhavikatti, Neil"]
[WhiteFideId "24614734"]
[BlackFideId "30935024"]
[WhiteElo "2345"]
[BlackElo "2342"]
[Result "0-1"]
[Round "07"]
[TimeControl "180+2"]
[Date "2023.03.21"]
[WhiteClock "0:00:02"]
[BlackClock "0:00:08"]

1. e4 {[%clk 0:03:00]}  e5 {[%clk 0:02:58]} 2. Bc4 {[%clk 0:03:00]}  Nc6 {[%clk 0:02:57]} 3. Nc3 {[%clk 0:02:58]}  Nf6 {[%clk 0:02:55]} 4. d3 {[%clk 0:02:56]}  Na5 {[%clk 0:02:48]} 5. Bd5 {[%clk 0:02:52]}  c6 {[%clk 0:02:47]} 6. Bb3 {[%clk 0:02:52]}  h6 {[%clk 0:02:37]} 7. Nge2 {[%clk 0:02:49]}  Nxb3 {[%clk 0:02:35]} 8. axb3 {[%clk 0:02:48]}  Bb4 {[%clk 0:02:29]} 9. O-O {[%clk 0:02:47]}  O-O {[%clk 0:02:29]} 10. f4 {[%clk 0:02:45]}  d6 {[%clk 0:02:13]} 11. fxe5 {[%clk 0:02:31]}  dxe5 {[%clk 0:02:09]} 12. h3 {[%clk 0:02:31]}  Bc5+ {[%clk 0:02:03]} 13. Kh2 {[%clk 0:02:30]}  Ng4+ {[%clk 0:01:50]} 14. Kg3 {[%clk 0:02:18]}  Ne3 {[%clk 0:01:40]} 15. Bxe3 {[%clk 0:02:17]}  Bxe3 {[%clk 0:01:40]} 16. Kh2 {[%clk 0:02:16]}  Be6 {[%clk 0:01:36]} 17. Rf3 {[%clk 0:02:16]}  Bb6 {[%clk 0:01:26]} 18. Ng3 {[%clk 0:02:15]}  g6 {[%clk 0:01:25]} 19. Qd2 {[%clk 0:02:07]}  Qh4 {[%clk 0:01:24]} 20. Raf1 {[%clk 0:02:05]}  Kh7 {[%clk 0:01:18]} 21. Nce2 {[%clk 0:01:56]}  Bc7 {[%clk 0:01:15]} 22. Kg1 {[%clk 0:01:45]}  Rad8 {[%clk 0:00:45]} 23. Qe1 {[%clk 0:01:43]}  Bb6+ {[%clk 0:00:44]} 24. Kh2 {[%clk 0:01:39]}  Bg4 {[%clk 0:00:41]} 25. Rxf7+ {[%clk 0:01:38]}  Kg8 {[%clk 0:00:39]} 26. Rxf8+ {[%clk 0:01:37]}  Rxf8 {[%clk 0:00:40]} 27. Rxf8+ {[%clk 0:01:37]}  Kxf8 {[%clk 0:00:41]} 28. Qf1+ {[%clk 0:01:30]}  Kg7 {[%clk 0:00:40]} 29. Nc3 {[%clk 0:01:24]}  Be6 {[%clk 0:00:37]} 30. Qf3 {[%clk 0:01:18]}  Qf4 {[%clk 0:00:30]} 31. Qxf4 {[%clk 0:01:13]}  exf4 {[%clk 0:00:31]} 32. Nge2 {[%clk 0:01:13]}  g5 {[%clk 0:00:31]} 33. d4 {[%clk 0:01:11]}  Kf6 {[%clk 0:00:28]} 34. Na4 {[%clk 0:01:07]}  Bc7 {[%clk 0:00:25]} 35. Kg1 {[%clk 0:01:00]}  b6 {[%clk 0:00:24]} 36. c4 {[%clk 0:00:59]}  Bc8 {[%clk 0:00:21]} 37. Nac3 {[%clk 0:00:58]}  h5 {[%clk 0:00:21]} 38. b4 {[%clk 0:00:52]}  g4 {[%clk 0:00:21]} 39. hxg4 {[%clk 0:00:50]}  hxg4 {[%clk 0:00:22]} 40. b5 {[%clk 0:00:48]}  f3 {[%clk 0:00:20]} 41. gxf3 {[%clk 0:00:45]}  gxf3 {[%clk 0:00:20]} 42. e5+ {[%clk 0:00:44]}  Kf5 {[%clk 0:00:19]} 43. Ng3+ {[%clk 0:00:44]}  Kg4 {[%clk 0:00:19]} 44. Kf2 {[%clk 0:00:44]}  c5 {[%clk 0:00:19]} 45. Nd5 {[%clk 0:00:40]}  Bd8 {[%clk 0:00:19]} 46. Nf6+ {[%clk 0:00:31]}  Kf4 {[%clk 0:00:19]} 47. Ngh5+ {[%clk 0:00:27]}  Kf5 {[%clk 0:00:16]} 48. Ng3+ {[%clk 0:00:11]}  Kf4 {[%clk 0:00:16]} 49. Nd5+ {[%clk 0:00:11]}  Kg4 {[%clk 0:00:15]} 50. dxc5 {[%clk 0:00:08]}  Bh4 {[%clk 0:00:13]} 51. Nf6+ {[%clk 0:00:07]}  Kf4 {[%clk 0:00:12]} 52. Nh5+ {[%clk 0:00:07]}  Kxe5 {[%clk 0:00:12]} 53. Kxf3 {[%clk 0:00:07]}  bxc5 {[%clk 0:00:12]} 54. Ke3 {[%clk 0:00:04]}  Bg5+ {[%clk 0:00:12]} 55. Kd3 {[%clk 0:00:04]}  Bb7 {[%clk 0:00:11]} 56. Kc3 {[%clk 0:00:02]}  Be3 {[%clk 0:00:08]} 0-1


[Site "https://www.chess.com"]

[Event "Titled Tuesday Blitz March 21 Late 2023"]
[White "Munoz, Francisco Javier"]
[Black "Kostiukov, Alexandr"]
[WhiteFideId "128368"]
[BlackFideId "14108100"]
[WhiteElo "2383"]
[BlackElo "2202"]
[Result "1-0"]
[Round "07"]
[TimeControl "180+2"]
[Date "2023.03.21"]
[WhiteClock "0:00:39"]
[BlackClock "0:00:02"]

1. e4 {[%clk 0:01:55]}  c5 {[%clk 0:02:56]} 2. Nc3 {[%clk 0:01:56]}  g6 {[%clk 0:02:56]} 3. f4 {[%clk 0:01:53]}  Bg7 {[%clk 0:02:56]} 4. Nf3 {[%clk 0:01:50]}  Nc6 {[%clk 0:02:56]} 5. Bb5 {[%clk 0:01:49]}  Nd4 {[%clk 0:02:54]} 6. Nxd4 {[%clk 0:01:50]}  cxd4 {[%clk 0:02:55]} 7. Ne2 {[%clk 0:01:50]}  a6 {[%clk 0:02:55]} 8. Ba4 {[%clk 0:01:51]}  e6 {[%clk 0:02:52]} 9. Bb3 {[%clk 0:01:49]}  Ne7 {[%clk 0:02:51]} 10. d3 {[%clk 0:01:49]}  O-O {[%clk 0:02:51]} 11. O-O {[%clk 0:01:50]}  Nc6 {[%clk 0:02:41]} 12. f5 {[%clk 0:01:50]}  Na5 {[%clk 0:02:25]} 13. Ng3 {[%clk 0:01:46]}  Nxb3 {[%clk 0:02:23]} 14. axb3 {[%clk 0:01:47]}  d5 {[%clk 0:02:19]} 15. Qf3 {[%clk 0:01:39]}  dxe4 {[%clk 0:02:05]} 16. dxe4 {[%clk 0:01:40]}  f6 {[%clk 0:01:34]} 17. Bd2 {[%clk 0:01:15]}  e5 {[%clk 0:01:29]} 18. Rad1 {[%clk 0:01:14]}  Qb6 {[%clk 0:01:14]} 19. Kh1 {[%clk 0:01:08]}  Bd7 {[%clk 0:01:12]} 20. c3 {[%clk 0:00:59]}  Qxb3 {[%clk 0:01:03]} 21. cxd4 {[%clk 0:00:58]}  Qxf3 {[%clk 0:01:01]} 22. Rxf3 {[%clk 0:00:58]}  exd4 {[%clk 0:00:32]} 23. Bb4 {[%clk 0:00:58]}  Rfd8 {[%clk 0:00:26]} 24. Rxd4 {[%clk 0:00:58]}  Bb5 {[%clk 0:00:23]} 25. Rxd8+ {[%clk 0:00:57]}  Rxd8 {[%clk 0:00:23]} 26. h3 {[%clk 0:00:57]}  Kf7 {[%clk 0:00:17]} 27. Bc3 {[%clk 0:00:55]}  g5 {[%clk 0:00:15]} 28. Re3 {[%clk 0:00:52]}  Rd1+ {[%clk 0:00:09]} 29. Kh2 {[%clk 0:00:51]}  Bf8 {[%clk 0:00:09]} 30. e5 {[%clk 0:00:46]}  fxe5 {[%clk 0:00:06]} 31. Ne4 {[%clk 0:00:40]}  h6 {[%clk 0:00:03]} 32. Bxe5 {[%clk 0:00:39]}  Bc5 {[%clk 0:00:02]} 33. Nxc5 {[%clk 0:00:39]} 1-0


[Site "https://www.chess.com"]